[Event "Titled Tuesday Blitz September 27 Early 2022"]
[White "Hambleton, Aman"]
[Black "Suleymanli, Suleyman"]
[WhiteFideId "2606577"]
[BlackFideId "13416375"]
[WhiteElo "2538"]
[BlackElo "1652"]
[Result "0-1"]
[Round "04"]
[TimeControl "180+1"]
[Date "2022.09.27"]
[WhiteClock "0:00:02"]
[BlackClock "0:01:23"]

1. d4 {[%clk 0:02:52]}  d5 {[%clk 0:02:58]} 2. Bf4 {[%clk 0:02:49]}  Nf6 {[%clk 0:02:57]} 3. e3 {[%clk 0:02:50]}  e6 {[%clk 0:02:56]} 4. Nf3 {[%clk 0:02:49]}  Bd6 {[%clk 0:02:56]} 5. Nbd2 {[%clk 0:02:50]}  Bxf4 {[%clk 0:02:55]} 6. exf4 {[%clk 0:02:51]}  c5 {[%clk 0:02:55]} 7. dxc5 {[%clk 0:02:52]}  Qa5 {[%clk 0:02:54]} 8. Bd3 {[%clk 0:02:48]}  Qxc5 {[%clk 0:02:54]} 9. O-O {[%clk 0:02:48]}  Nc6 {[%clk 0:02:53]} 10. Nb3 {[%clk 0:02:29]}  Qb6 {[%clk 0:02:52]} 11. c3 {[%clk 0:02:17]}  O-O {[%clk 0:02:49]} 12. Qe2 {[%clk 0:02:15]}  Bd7 {[%clk 0:02:43]} 13. Rfe1 {[%clk 0:02:13]}  Rfe8 {[%clk 0:02:39]} 14. Nbd4 {[%clk 0:02:11]}  Rad8 {[%clk 0:02:39]} 15. g3 {[%clk 0:02:02]}  Bc8 {[%clk 0:02:34]} 16. Rad1 {[%clk 0:02:00]}  g6 {[%clk 0:02:23]} 17. Kg2 {[%clk 0:01:39]}  Qc7 {[%clk 0:02:13]} 18. Bc2 {[%clk 0:01:25]}  a6 {[%clk 0:02:12]} 19. Ne5 {[%clk 0:01:22]}  Nxe5 {[%clk 0:02:10]} 20. fxe5 {[%clk 0:01:13]}  Nd7 {[%clk 0:02:09]} 21. h4 {[%clk 0:01:11]}  f6 {[%clk 0:02:01]} 22. Nf3 {[%clk 0:00:54]}  fxe5 {[%clk 0:01:58]} 23. Nxe5 {[%clk 0:00:54]}  Nxe5 {[%clk 0:01:59]} 24. Qxe5 {[%clk 0:00:54]}  Qxe5 {[%clk 0:02:00]} 25. Rxe5 {[%clk 0:00:55]}  Bd7 {[%clk 0:01:58]} 26. f4 {[%clk 0:00:51]}  Kf7 {[%clk 0:01:58]} 27. h5 {[%clk 0:00:46]}  Kf6 {[%clk 0:01:58]} 28. hxg6 {[%clk 0:00:29]}  hxg6 {[%clk 0:01:58]} 29. Rg5 {[%clk 0:00:29]}  Rg8 {[%clk 0:01:56]} 30. Kf2 {[%clk 0:00:23]}  Rg7 {[%clk 0:01:52]} 31. Rh1 {[%clk 0:00:22]}  Rdg8 {[%clk 0:01:52]} 32. Ke3 {[%clk 0:00:20]}  b6 {[%clk 0:01:51]} 33. Kd4 {[%clk 0:00:19]}  Be8 {[%clk 0:01:50]} 34. Bd3 {[%clk 0:00:17]}  a5 {[%clk 0:01:48]} 35. Rh6 {[%clk 0:00:11]}  Bf7 {[%clk 0:01:48]} 36. Re5 {[%clk 0:00:09]}  Ke7 {[%clk 0:01:39]} 37. Rg5 {[%clk 0:00:06]}  Kf6 {[%clk 0:01:39]} 38. Rh2 {[%clk 0:00:07]}  Rb8 {[%clk 0:01:36]} 39. Re2 {[%clk 0:00:05]}  Rh8 {[%clk 0:01:36]} 40. a3 {[%clk 0:00:01]}  Rh3 {[%clk 0:01:36]} 41. b4 {[%clk 0:00:01]}  a4 {[%clk 0:01:36]} 42. c4 {[%clk 0:00:01]}  dxc4 {[%clk 0:01:35]} 43. Bxc4 {[%clk 0:00:02]}  Rh5 {[%clk 0:01:34]} 44. Rxh5 {[%clk 0:00:02]}  gxh5 {[%clk 0:01:35]} 45. Re3 {[%clk 0:00:02]}  h4 {[%clk 0:01:33]} 46. gxh4 {[%clk 0:00:02]}  Rg4 {[%clk 0:01:33]} 47. Rf3 {[%clk 0:00:03]}  Rxh4 {[%clk 0:01:33]} 48. Ke3 {[%clk 0:00:02]}  Ke7 {[%clk 0:01:32]} 49. Bb5 {[%clk 0:00:02]}  Bh5 {[%clk 0:01:31]} 50. Rg3 {[%clk 0:00:02]}  Bd1 {[%clk 0:01:31]} 51. Ke4 {[%clk 0:00:01]}  Bc2+ {[%clk 0:01:30]} 52. Kd4 {[%clk 0:00:02]}  Rxf4+ {[%clk 0:01:30]} 53. Kc3 {[%clk 0:00:02]}  Bb3 {[%clk 0:01:29]} 54. Re3 {[%clk 0:00:02]}  Kd6 {[%clk 0:01:29]} 55. Bd3 {[%clk 0:00:02]}  e5 {[%clk 0:01:29]} 56. Rg3 {[%clk 0:00:02]}  e4 {[%clk 0:01:28]} 57. Be2 {[%clk 0:00:02]}  Ke5 {[%clk 0:01:28]} 58. Rg5+ {[%clk 0:00:03]}  Kf6 {[%clk 0:01:27]} 59. Rb5 {[%clk 0:00:02]}  Rf2 {[%clk 0:01:26]} 60. Rxb6+ {[%clk 0:00:02]}  Ke5 {[%clk 0:01:26]} 61. Ba6 {[%clk 0:00:02]}  Rc2# {[%clk 0:01:23]} 0-1


[Site "https://www.chess.com"]

[Event "Titled Tuesday Blitz September 27 Early 2022"]
[White "Hansen, Eric"]
[Black "Piesik, Piotr"]
[WhiteFideId "2606771"]
[BlackFideId "1136194"]
[WhiteElo "2568"]
[BlackElo "2221"]
[Result "1-0"]
[Round "04"]
[TimeControl "180+1"]
[Date "2022.09.27"]
[WhiteClock "0:00:03"]
[BlackClock "0:00:01"]

1. e4 {[%clk 0:02:59]}  c6 {[%clk 0:03:00]} 2. Nf3 {[%clk 0:02:57]}  d5 {[%clk 0:02:59]} 3. d3 {[%clk 0:02:57]}  g6 {[%clk 0:02:57]} 4. g3 {[%clk 0:02:48]}  Bg7 {[%clk 0:02:56]} 5. Bg2 {[%clk 0:02:48]}  dxe4 {[%clk 0:02:51]} 6. dxe4 {[%clk 0:02:49]}  Qxd1+ {[%clk 0:02:51]} 7. Kxd1 {[%clk 0:02:50]}  e5 {[%clk 0:02:48]} 8. Nbd2 {[%clk 0:02:50]}  Be6 {[%clk 0:02:43]} 9. Ng5 {[%clk 0:02:46]}  Bd7 {[%clk 0:02:40]} 10. Nc4 {[%clk 0:02:46]}  Ke7 {[%clk 0:02:40]} 11. b3 {[%clk 0:02:35]}  b6 {[%clk 0:02:24]} 12. Ba3+ {[%clk 0:02:33]}  c5 {[%clk 0:02:24]} 13. Bb2 {[%clk 0:02:34]}  f6 {[%clk 0:02:22]} 14. Nf3 {[%clk 0:02:31]}  Bc6 {[%clk 0:02:21]} 15. Nfd2 {[%clk 0:02:28]}  Bh6 {[%clk 0:02:18]} 16. Ke2 {[%clk 0:02:16]}  Na6 {[%clk 0:02:16]} 17. Ne3 {[%clk 0:02:12]}  Bxe3 {[%clk 0:02:15]} 18. Kxe3 {[%clk 0:02:12]}  Nb4 {[%clk 0:02:12]} 19. Rhc1 {[%clk 0:02:07]}  Nh6 {[%clk 0:02:05]} 20. a3 {[%clk 0:01:56]}  Ng4+ {[%clk 0:02:01]} 21. Ke2 {[%clk 0:01:56]}  Na6 {[%clk 0:01:59]} 22. h3 {[%clk 0:01:41]}  Nh6 {[%clk 0:01:59]} 23. f4 {[%clk 0:01:41]}  Nf7 {[%clk 0:01:56]} 24. Ke3 {[%clk 0:01:37]}  Nc7 {[%clk 0:01:48]} 25. Nc4 {[%clk 0:01:32]}  exf4+ {[%clk 0:01:48]} 26. gxf4 {[%clk 0:01:32]}  Rhd8 {[%clk 0:01:42]} 27. Bf1 {[%clk 0:01:24]}  Ne6 {[%clk 0:01:34]} 28. Rd1 {[%clk 0:01:15]}  Rac8 {[%clk 0:01:26]} 29. a4 {[%clk 0:01:13]}  Rc7 {[%clk 0:01:05]} 30. h4 {[%clk 0:01:01]}  Rcd7 {[%clk 0:01:04]} 31. Rxd7+ {[%clk 0:01:01]}  Rxd7 {[%clk 0:01:04]} 32. Bh3 {[%clk 0:00:59]}  Rd8 {[%clk 0:01:04]} 33. Rf1 {[%clk 0:00:45]}  Nd4 {[%clk 0:01:00]} 34. Rf2 {[%clk 0:00:45]}  Nd6 {[%clk 0:00:56]} 35. Nxd6 {[%clk 0:00:41]}  Rxd6 {[%clk 0:00:57]} 36. e5 {[%clk 0:00:17]}  fxe5 {[%clk 0:00:48]} 37. fxe5 {[%clk 0:00:17]}  Rd8 {[%clk 0:00:48]} 38. e6 {[%clk 0:00:11]}  Nf5+ {[%clk 0:00:39]} 39. Bxf5 {[%clk 0:00:11]}  gxf5 {[%clk 0:00:40]} 40. Rxf5 {[%clk 0:00:11]}  Kxe6 {[%clk 0:00:31]} 41. Rh5 {[%clk 0:00:08]}  Re8 {[%clk 0:00:12]} 42. Rxh7 {[%clk 0:00:04]}  Kf5+ {[%clk 0:00:11]} 43. Kd2 {[%clk 0:00:05]}  Bf3 {[%clk 0:00:08]} 44. Bc3 {[%clk 0:00:03]}  Re2+ {[%clk 0:00:08]} 45. Kc1 {[%clk 0:00:04]}  Be4 {[%clk 0:00:06]} 46. Bd2 {[%clk 0:00:04]}  a5 {[%clk 0:00:04]} 47. h5 {[%clk 0:00:04]}  Kg4 {[%clk 0:00:03]} 48. Rh8 {[%clk 0:00:04]}  Rf2 {[%clk 0:00:01]} 49. h6 {[%clk 0:00:03]}  Rf1+ {[%clk 0:00:01]} 50. Kb2 {[%clk 0:00:04]}  Rf2 {[%clk 0:00:01]} 51. Rd8 {[%clk 0:00:04]}  Rh2 {[%clk 0:00:01]} 52. Rd6 {[%clk 0:00:03]}  Kf5 {[%clk 0:00:01]} 53. Kc1 {[%clk 0:00:03]} 1-0


[Site "https://www.chess.com"]

[Event "Titled Tuesday Blitz September 27 Early 2022"]
[White "Hristodoulou, Panagiotis"]
[Black "Gajwa Ankit"]
[WhiteFideId "4214340"]
[BlackFideId "5077834"]
[WhiteElo "2172"]
[BlackElo "2036"]
[Result "0-1"]
[Round "04"]
[TimeControl "180+1"]
[Date "2022.09.27"]
[WhiteClock "0:00:22"]
[BlackClock "0:01:20"]

1. e4 {[%clk 0:02:17]}  c5 {[%clk 0:02:57]} 2. Nf3 {[%clk 0:02:17]}  d6 {[%clk 0:02:57]} 3. d4 {[%clk 0:02:18]}  cxd4 {[%clk 0:02:58]} 4. Nxd4 {[%clk 0:02:18]}  Nf6 {[%clk 0:02:59]} 5. Nc3 {[%clk 0:02:19]}  g6 {[%clk 0:02:59]} 6. Be2 {[%clk 0:02:17]}  Bg7 {[%clk 0:03:00]} 7. Be3 {[%clk 0:02:17]}  O-O {[%clk 0:03:00]} 8. O-O {[%clk 0:02:18]}  Nc6 {[%clk 0:03:01]} 9. Qd2 {[%clk 0:02:18]}  d5 {[%clk 0:03:00]} 10. exd5 {[%clk 0:02:11]}  Nxd5 {[%clk 0:03:00]} 11. Nxd5 {[%clk 0:02:12]}  Qxd5 {[%clk 0:02:59]} 12. Bf3 {[%clk 0:02:12]}  Qd8 {[%clk 0:02:39]} 13. Rad1 {[%clk 0:01:52]}  Bd7 {[%clk 0:02:28]} 14. Nxc6 {[%clk 0:01:38]}  Bxc6 {[%clk 0:02:26]} 15. Bxc6 {[%clk 0:01:35]}  bxc6 {[%clk 0:02:25]} 16. Qb4 {[%clk 0:01:24]}  Qc7 {[%clk 0:02:17]} 17. b3 {[%clk 0:01:24]}  a5 {[%clk 0:02:15]} 18. Qc4 {[%clk 0:01:16]}  a4 {[%clk 0:02:08]} 19. Rd3 {[%clk 0:01:15]}  axb3 {[%clk 0:02:08]} 20. axb3 {[%clk 0:01:15]}  Rfd8 {[%clk 0:02:07]} 21. Rfd1 {[%clk 0:01:15]}  Rxd3 {[%clk 0:02:08]} 22. Qxd3 {[%clk 0:01:14]}  Be5 {[%clk 0:02:07]} 23. g3 {[%clk 0:01:12]}  Kf8 {[%clk 0:01:52]} 24. Qe4 {[%clk 0:01:08]}  Ra1 {[%clk 0:01:47]} 25. Rxa1 {[%clk 0:01:04]}  Bxa1 {[%clk 0:01:46]} 26. Bf4 {[%clk 0:01:03]}  Qd7 {[%clk 0:01:41]} 27. Kg2 {[%clk 0:00:57]}  f5 {[%clk 0:01:32]} 28. Qc4 {[%clk 0:00:51]}  Qd5+ {[%clk 0:01:22]} 29. Qxd5 {[%clk 0:00:50]}  cxd5 {[%clk 0:01:22]} 30. Kf3 {[%clk 0:00:22]}  e5 {[%clk 0:01:20]} 31. Ke2 {[%clk 0:00:22]}  exf4 {[%clk 0:01:20]} 0-1


[Site "https://www.chess.com"]

[Event "Titled Tuesday Blitz September 27 Early 2022"]
[White "Ilkhomi, Jaloliddin"]
[Black "Ferguson, Randal"]
[WhiteFideId "14700948"]
[BlackFideId "30903106"]
[WhiteElo "1440"]
[BlackElo "2074"]
[Result "1-0"]
[Round "04"]
[TimeControl "180+1"]
[Date "2022.09.27"]
[WhiteClock "0:00:28"]
[BlackClock "0:00:04"]

1. d4 {[%clk 0:03:00]}  Nf6 {[%clk 0:02:58]} 2. Nf3 {[%clk 0:03:00]}  g6 {[%clk 0:02:58]} 3. Bg5 {[%clk 0:03:00]}  Bg7 {[%clk 0:02:58]} 4. c3 {[%clk 0:03:01]}  Ne4 {[%clk 0:02:58]} 5. Bh4 {[%clk 0:03:00]}  d5 {[%clk 0:02:55]} 6. Nbd2 {[%clk 0:03:01]}  O-O {[%clk 0:02:41]} 7. e3 {[%clk 0:03:01]}  Bf5 {[%clk 0:02:33]} 8. Nxe4 {[%clk 0:03:01]}  Bxe4 {[%clk 0:02:26]} 9. Bd3 {[%clk 0:03:00]}  Bxf3 {[%clk 0:02:19]} 10. Qxf3 {[%clk 0:02:59]}  c6 {[%clk 0:02:01]} 11. O-O {[%clk 0:02:58]}  Nd7 {[%clk 0:02:01]} 12. e4 {[%clk 0:02:57]}  dxe4 {[%clk 0:01:59]} 13. Qxe4 {[%clk 0:02:56]}  Nf6 {[%clk 0:01:55]} 14. Qe2 {[%clk 0:02:55]}  Qd7 {[%clk 0:01:52]} 15. Rfe1 {[%clk 0:02:55]}  Rfe8 {[%clk 0:01:52]} 16. Rad1 {[%clk 0:02:55]}  Rad8 {[%clk 0:01:47]} 17. Bc4 {[%clk 0:02:54]}  Nd5 {[%clk 0:01:44]} 18. Qf3 {[%clk 0:02:46]}  a5 {[%clk 0:01:27]} 19. Re2 {[%clk 0:02:36]}  Ra8 {[%clk 0:01:16]} 20. Rde1 {[%clk 0:02:35]}  e6 {[%clk 0:01:16]} 21. a4 {[%clk 0:02:15]}  Qc7 {[%clk 0:01:14]} 22. Bg3 {[%clk 0:02:13]}  Qb6 {[%clk 0:01:14]} 23. b3 {[%clk 0:02:13]}  Qd8 {[%clk 0:01:00]} 24. h4 {[%clk 0:02:07]}  h5 {[%clk 0:00:58]} 25. Re4 {[%clk 0:01:54]}  Qd7 {[%clk 0:00:56]} 26. Be5 {[%clk 0:01:52]}  Bxe5 {[%clk 0:00:47]} 27. Rxe5 {[%clk 0:01:52]}  Qe7 {[%clk 0:00:31]} 28. Rg5 {[%clk 0:01:51]}  Rad8 {[%clk 0:00:14]} 29. Bd3 {[%clk 0:01:20]}  Qf6 {[%clk 0:00:08]} 30. Qxh5 {[%clk 0:01:07]}  Nf4 {[%clk 0:00:06]} 31. Qf3 {[%clk 0:01:08]}  e5 {[%clk 0:00:05]} 32. Rexe5 {[%clk 0:00:35]}  Rxe5 {[%clk 0:00:04]} 33. dxe5 {[%clk 0:00:28]}  Rxd3 {[%clk 0:00:04]} 34. exf6 {[%clk 0:00:28]}  Rxf3 {[%clk 0:00:02]} 35. gxf3 {[%clk 0:00:27]}  Nh3+ {[%clk 0:00:02]} 36. Kf1 {[%clk 0:00:27]}  Nxg5 {[%clk 0:00:03]} 37. hxg5 {[%clk 0:00:28]}  Kf8 {[%clk 0:00:03]} 38. Ke2 {[%clk 0:00:28]}  Ke8 {[%clk 0:00:04]} 39. Ke3 {[%clk 0:00:28]}  Kd7 {[%clk 0:00:05]} 40. Ke4 {[%clk 0:00:26]}  Ke6 {[%clk 0:00:06]} 41. f4 {[%clk 0:00:26]}  Kd6 {[%clk 0:00:07]} 42. f5 {[%clk 0:00:26]}  gxf5+ {[%clk 0:00:06]} 43. Kxf5 {[%clk 0:00:27]}  b5 {[%clk 0:00:05]} 44. g6 {[%clk 0:00:26]}  fxg6+ {[%clk 0:00:05]} 45. Kxg6 {[%clk 0:00:27]}  bxa4 {[%clk 0:00:04]} 46. bxa4 {[%clk 0:00:28]} 1-0


[Site "https://www.chess.com"]

[Event "Titled Tuesday Blitz September 27 Early 2022"]
[White "Ismayil, Malak"]
[Black "Brodowski, Piotr"]
[WhiteFideId "13412604"]
[BlackFideId "1124480"]
[WhiteElo "1879"]
[BlackElo "2312"]
[Result "0-1"]
[Round "04"]
[TimeControl "180+1"]
[Date "2022.09.27"]
[WhiteClock "0:00:05"]
[BlackClock "0:00:57"]

1. e4 {[%clk 0:03:00]}  c5 {[%clk 0:02:59]} 2. Nf3 {[%clk 0:03:00]}  g6 {[%clk 0:02:49]} 3. Nc3 {[%clk 0:02:59]}  Bg7 {[%clk 0:02:43]} 4. Bc4 {[%clk 0:02:42]}  Nc6 {[%clk 0:02:43]} 5. O-O {[%clk 0:02:40]}  a6 {[%clk 0:02:38]} 6. a3 {[%clk 0:02:32]}  d6 {[%clk 0:02:38]} 7. d3 {[%clk 0:02:28]}  Nf6 {[%clk 0:02:37]} 8. Bg5 {[%clk 0:02:27]}  h6 {[%clk 0:02:35]} 9. Bf4 {[%clk 0:02:20]}  O-O {[%clk 0:02:35]} 10. h3 {[%clk 0:02:20]}  e5 {[%clk 0:02:24]} 11. Be3 {[%clk 0:02:14]}  b5 {[%clk 0:02:24]} 12. Bd5 {[%clk 0:02:13]}  Nxd5 {[%clk 0:02:24]} 13. Nxd5 {[%clk 0:02:13]}  Be6 {[%clk 0:02:24]} 14. Qd2 {[%clk 0:02:08]}  Kh7 {[%clk 0:02:24]} 15. Nh2 {[%clk 0:01:37]}  f5 {[%clk 0:02:22]} 16. f3 {[%clk 0:01:37]}  Rb8 {[%clk 0:02:17]} 17. Rab1 {[%clk 0:01:33]}  Bxd5 {[%clk 0:01:59]} 18. exd5 {[%clk 0:01:33]}  Ne7 {[%clk 0:02:00]} 19. c4 {[%clk 0:01:33]}  bxc4 {[%clk 0:02:01]} 20. dxc4 {[%clk 0:01:33]}  Rb3 {[%clk 0:02:02]} 21. Rfe1 {[%clk 0:01:30]}  Qb6 {[%clk 0:02:01]} 22. Nf1 {[%clk 0:01:21]}  Rb8 {[%clk 0:02:01]} 23. Re2 {[%clk 0:01:21]}  a5 {[%clk 0:01:58]} 24. Qc2 {[%clk 0:01:13]}  a4 {[%clk 0:01:58]} 25. Bc1 {[%clk 0:01:07]}  Rxa3 {[%clk 0:01:47]} 26. Nd2 {[%clk 0:01:05]}  Rb3 {[%clk 0:01:41]} 27. Nxb3 {[%clk 0:01:04]}  Qxb3 {[%clk 0:01:38]} 28. Ra1 {[%clk 0:00:56]}  Rb4 {[%clk 0:01:28]} 29. Qxb3 {[%clk 0:00:54]}  axb3 {[%clk 0:01:28]} 30. Ra7 {[%clk 0:00:53]}  Bf6 {[%clk 0:01:25]} 31. Bd2 {[%clk 0:00:32]}  Rxc4 {[%clk 0:01:24]} 32. Rb7 {[%clk 0:00:31]}  Kg8 {[%clk 0:01:20]} 33. Rb8+ {[%clk 0:00:30]}  Kf7 {[%clk 0:01:20]} 34. Rxb3 {[%clk 0:00:26]}  Nxd5 {[%clk 0:01:19]} 35. Rb7+ {[%clk 0:00:18]}  Ke6 {[%clk 0:01:19]} 36. Kf2 {[%clk 0:00:17]}  h5 {[%clk 0:01:18]} 37. b3 {[%clk 0:00:16]}  Rc2 {[%clk 0:01:12]} 38. g3 {[%clk 0:00:16]}  h4 {[%clk 0:01:12]} 39. g4 {[%clk 0:00:15]}  Rb2 {[%clk 0:01:08]} 40. Bc1 {[%clk 0:00:10]}  Rb1 {[%clk 0:01:07]} 41. Rc2 {[%clk 0:00:08]}  Nb4 {[%clk 0:01:03]} 42. Rc4 {[%clk 0:00:07]}  Rxb3 {[%clk 0:00:59]} 43. Bd2 {[%clk 0:00:05]}  Nd3+ {[%clk 0:00:57]} 0-1


[Site "https://www.chess.com"]

[Event "Titled Tuesday Blitz September 27 Early 2022"]
[White "Jobava, Baadur"]
[Black "Milikow, Yoav"]
[WhiteFideId "13601520"]
[BlackFideId "2822237"]
[WhiteElo "2582"]
[BlackElo "2341"]
[Result "0-1"]
[Round "04"]
[TimeControl "180+1"]
[Date "2022.09.27"]
[WhiteClock "0:00:06"]
[BlackClock "0:00:19"]

1. e4 {[%clk 0:03:00]}  e5 {[%clk 0:02:59]} 2. Nf3 {[%clk 0:03:00]}  Nf6 {[%clk 0:02:56]} 3. Nxe5 {[%clk 0:02:59]}  d6 {[%clk 0:02:57]} 4. Nf3 {[%clk 0:03:00]}  Nxe4 {[%clk 0:02:57]} 5. d3 {[%clk 0:03:01]}  Nf6 {[%clk 0:02:57]} 6. d4 {[%clk 0:03:02]}  g6 {[%clk 0:02:57]} 7. Bd3 {[%clk 0:03:02]}  Bg7 {[%clk 0:02:58]} 8. O-O {[%clk 0:03:03]}  O-O {[%clk 0:02:57]} 9. c3 {[%clk 0:03:04]}  c5 {[%clk 0:02:55]} 10. dxc5 {[%clk 0:03:01]}  dxc5 {[%clk 0:02:56]} 11. Bc2 {[%clk 0:03:00]}  Qc7 {[%clk 0:02:50]} 12. Na3 {[%clk 0:03:00]}  Nc6 {[%clk 0:02:44]} 13. Nb5 {[%clk 0:02:55]}  Qb6 {[%clk 0:02:44]} 14. a4 {[%clk 0:02:56]}  a6 {[%clk 0:02:39]} 15. Nd6 {[%clk 0:02:49]}  Be6 {[%clk 0:02:36]} 16. Qe2 {[%clk 0:02:28]}  Na5 {[%clk 0:02:29]} 17. Bf4 {[%clk 0:02:07]}  Nh5 {[%clk 0:02:16]} 18. Be5 {[%clk 0:02:02]}  f6 {[%clk 0:02:10]} 19. Bg3 {[%clk 0:02:01]}  Bd5 {[%clk 0:02:01]} 20. Be4 {[%clk 0:01:33]}  Bb3 {[%clk 0:01:48]} 21. Rad1 {[%clk 0:01:19]}  Nxg3 {[%clk 0:01:45]} 22. hxg3 {[%clk 0:01:20]}  Rad8 {[%clk 0:01:40]} 23. Qd2 {[%clk 0:01:07]}  Kh8 {[%clk 0:01:21]} 24. Qd3 {[%clk 0:00:26]}  f5 {[%clk 0:01:05]} 25. Bxf5 {[%clk 0:00:26]}  gxf5 {[%clk 0:00:57]} 26. Ng5 {[%clk 0:00:26]}  Qc7 {[%clk 0:00:42]} 27. Rd2 {[%clk 0:00:20]}  Be5 {[%clk 0:00:35]} 28. Qe2 {[%clk 0:00:14]}  Bxd6 {[%clk 0:00:32]} 29. Qh5 {[%clk 0:00:15]}  Qg7 {[%clk 0:00:28]} 30. Re1 {[%clk 0:00:13]}  Be7 {[%clk 0:00:23]} 31. Rxd8 {[%clk 0:00:12]}  Rxd8 {[%clk 0:00:24]} 32. Nf3 {[%clk 0:00:10]}  Bg8 {[%clk 0:00:21]} 33. Qxf5 {[%clk 0:00:10]}  Nc6 {[%clk 0:00:21]} 34. Qf4 {[%clk 0:00:07]}  Rf8 {[%clk 0:00:20]} 35. Qc7 {[%clk 0:00:07]}  Bf6 {[%clk 0:00:20]} 36. Qb6 {[%clk 0:00:07]}  Ne5 {[%clk 0:00:20]} 37. Nd2 {[%clk 0:00:06]}  Nd3 {[%clk 0:00:19]} 38. Rf1 {[%clk 0:00:07]}  Bd8 {[%clk 0:00:19]} 39. Ne4 {[%clk 0:00:06]}  Bxb6 {[%clk 0:00:19]} 0-1


[Site "https://www.chess.com"]

[Event "Titled Tuesday Blitz September 27 Early 2022"]
[White "Johnson, Ben"]
[Black "Bowden, Karl"]
[WhiteFideId "2010917"]
[BlackFideId "400548"]
[WhiteElo "2211"]
[BlackElo "2464"]
[Result "0-1"]
[Round "04"]
[TimeControl "180+1"]
[Date "2022.09.27"]
[WhiteClock "0:00:01"]
[BlackClock "0:00:20"]

1. Nf3 {[%clk 0:03:00]}  Nf6 {[%clk 0:02:56]} 2. c4 {[%clk 0:03:00]}  g6 {[%clk 0:02:56]} 3. b3 {[%clk 0:03:00]}  Bg7 {[%clk 0:02:56]} 4. Bb2 {[%clk 0:03:01]}  O-O {[%clk 0:02:56]} 5. g3 {[%clk 0:02:59]}  Nc6 {[%clk 0:02:52]} 6. d4 {[%clk 0:02:57]}  Rb8 {[%clk 0:02:49]} 7. d5 {[%clk 0:02:52]}  Na5 {[%clk 0:02:48]} 8. Bg2 {[%clk 0:02:49]}  a6 {[%clk 0:02:43]} 9. Qd2 {[%clk 0:02:45]}  c5 {[%clk 0:02:41]} 10. O-O {[%clk 0:02:39]}  d6 {[%clk 0:02:36]} 11. Nc3 {[%clk 0:02:33]}  b5 {[%clk 0:02:34]} 12. cxb5 {[%clk 0:02:02]}  axb5 {[%clk 0:02:32]} 13. Ng5 {[%clk 0:02:03]}  b4 {[%clk 0:02:13]} 14. Nce4 {[%clk 0:02:01]}  c4 {[%clk 0:02:11]} 15. Bxf6 {[%clk 0:01:43]}  exf6 {[%clk 0:02:09]} 16. Nxh7 {[%clk 0:01:14]}  Kxh7 {[%clk 0:02:05]} 17. Qf4 {[%clk 0:01:14]}  Rb6 {[%clk 0:01:39]} 18. Rab1 {[%clk 0:00:56]}  Bf5 {[%clk 0:01:31]} 19. g4 {[%clk 0:00:54]}  Bxe4 {[%clk 0:01:26]} 20. Bxe4 {[%clk 0:00:55]}  Qe7 {[%clk 0:01:19]} 21. h4 {[%clk 0:00:44]}  Qe5 {[%clk 0:01:09]} 22. Qxe5 {[%clk 0:00:17]}  fxe5 {[%clk 0:01:06]} 23. Rfc1 {[%clk 0:00:18]}  c3 {[%clk 0:01:02]} 24. h5 {[%clk 0:00:18]}  Kh6 {[%clk 0:00:55]} 25. Kg2 {[%clk 0:00:15]}  f5 {[%clk 0:00:44]} 26. Bd3 {[%clk 0:00:09]}  e4 {[%clk 0:00:42]} 27. Bc2 {[%clk 0:00:08]}  gxh5 {[%clk 0:00:31]} 28. Rh1 {[%clk 0:00:07]}  Kg5 {[%clk 0:00:30]} 29. Rxh5+ {[%clk 0:00:06]}  Kxg4 {[%clk 0:00:27]} 30. Rbh1 {[%clk 0:00:07]}  Kf4 {[%clk 0:00:27]} 31. Rh7 {[%clk 0:00:03]}  Bf6 {[%clk 0:00:25]} 32. R1h5 {[%clk 0:00:01]}  Rb7 {[%clk 0:00:20]} 0-1


[Site "https://www.chess.com"]

[Event "Titled Tuesday Blitz September 27 Early 2022"]
[White "Jovic, Stanoje"]
[Black "Harish, Neeraj"]
[WhiteFideId "905020"]
[BlackFideId "30958130"]
[WhiteElo "2238"]
[BlackElo "1574"]
[Result "1-0"]
[Round "04"]
[TimeControl "180+1"]
[Date "2022.09.27"]
[WhiteClock "0:00:30"]
[BlackClock "0:00:06"]

1. c4 {[%clk 0:03:00]}  Nf6 {[%clk 0:02:56]} 2. g3 {[%clk 0:03:00]}  g6 {[%clk 0:02:54]} 3. Bg2 {[%clk 0:03:00]}  d5 {[%clk 0:02:51]} 4. cxd5 {[%clk 0:02:59]}  Nxd5 {[%clk 0:02:52]} 5. Nc3 {[%clk 0:02:59]}  Nxc3 {[%clk 0:02:52]} 6. bxc3 {[%clk 0:02:59]}  Bg7 {[%clk 0:02:52]} 7. Rb1 {[%clk 0:03:00]}  O-O {[%clk 0:02:52]} 8. Rxb7 {[%clk 0:02:56]}  Bxb7 {[%clk 0:02:53]} 9. Bxb7 {[%clk 0:02:55]}  Nd7 {[%clk 0:02:54]} 10. Bxa8 {[%clk 0:02:54]}  Qxa8 {[%clk 0:02:54]} 11. Nf3 {[%clk 0:02:54]}  e5 {[%clk 0:02:50]} 12. O-O {[%clk 0:02:52]}  e4 {[%clk 0:02:50]} 13. Nd4 {[%clk 0:02:49]}  c5 {[%clk 0:02:50]} 14. Nc2 {[%clk 0:02:47]}  Ne5 {[%clk 0:02:46]} 15. Ne3 {[%clk 0:02:46]}  Rd8 {[%clk 0:02:44]} 16. Qa4 {[%clk 0:02:38]}  f5 {[%clk 0:02:35]} 17. Rd1 {[%clk 0:02:28]}  h5 {[%clk 0:02:19]} 18. Ba3 {[%clk 0:02:27]}  Bf8 {[%clk 0:01:54]} 19. Qa5 {[%clk 0:02:15]}  Rc8 {[%clk 0:01:46]} 20. Rb1 {[%clk 0:02:06]}  Qc6 {[%clk 0:01:39]} 21. Qb5 {[%clk 0:01:59]}  Qd6 {[%clk 0:01:33]} 22. Rb2 {[%clk 0:01:50]}  a6 {[%clk 0:01:31]} 23. Qb7 {[%clk 0:01:44]}  Rc7 {[%clk 0:01:29]} 24. Qd5+ {[%clk 0:01:43]}  Qxd5 {[%clk 0:01:28]} 25. Nxd5 {[%clk 0:01:43]}  Rc6 {[%clk 0:01:27]} 26. Rb8 {[%clk 0:01:36]}  Kf7 {[%clk 0:01:24]} 27. Rb7+ {[%clk 0:01:35]}  Ke6 {[%clk 0:01:24]} 28. Nf4+ {[%clk 0:01:30]}  Kf6 {[%clk 0:01:18]} 29. d3 {[%clk 0:01:29]}  exd3 {[%clk 0:01:16]} 30. exd3 {[%clk 0:01:29]}  Bd6 {[%clk 0:00:59]} 31. Kg2 {[%clk 0:01:12]}  c4 {[%clk 0:00:50]} 32. Bxd6 {[%clk 0:01:06]}  Rxd6 {[%clk 0:00:50]} 33. d4 {[%clk 0:01:05]}  Nd3 {[%clk 0:00:48]} 34. Kf3 {[%clk 0:00:55]}  Nxf4 {[%clk 0:00:46]} 35. gxf4 {[%clk 0:00:54]}  Re6 {[%clk 0:00:41]} 36. Rc7 {[%clk 0:00:45]}  Rb6 {[%clk 0:00:34]} 37. Rxc4 {[%clk 0:00:43]}  Ke6 {[%clk 0:00:31]} 38. Rc5 {[%clk 0:00:42]}  Kd6 {[%clk 0:00:25]} 39. a4 {[%clk 0:00:40]}  Rb3 {[%clk 0:00:22]} 40. Ke3 {[%clk 0:00:37]}  Ra3 {[%clk 0:00:22]} 41. a5 {[%clk 0:00:37]}  Ra2 {[%clk 0:00:20]} 42. Rc8 {[%clk 0:00:36]}  Ra1 {[%clk 0:00:19]} 43. Rg8 {[%clk 0:00:35]}  Rg1 {[%clk 0:00:18]} 44. c4 {[%clk 0:00:34]}  Kc6 {[%clk 0:00:17]} 45. Rf8 {[%clk 0:00:33]}  Kc7 {[%clk 0:00:16]} 46. Rf7+ {[%clk 0:00:33]}  Kc6 {[%clk 0:00:16]} 47. Rf6+ {[%clk 0:00:33]}  Kb7 {[%clk 0:00:16]} 48. d5 {[%clk 0:00:33]}  Re1+ {[%clk 0:00:16]} 49. Kd4 {[%clk 0:00:33]}  Rd1+ {[%clk 0:00:16]} 50. Kc5 {[%clk 0:00:33]}  Rg1 {[%clk 0:00:14]} 51. Rf7+ {[%clk 0:00:33]}  Kb8 {[%clk 0:00:13]} 52. Kb6 {[%clk 0:00:33]}  Kc8 {[%clk 0:00:08]} 53. Kc6 {[%clk 0:00:30]}  Kb8 {[%clk 0:00:07]} 54. d6 {[%clk 0:00:30]}  Rc1 {[%clk 0:00:06]} 55. c5 {[%clk 0:00:30]} 1-0


[Site "https://www.chess.com"]